[Event "*** Titled Tuesday Blitz"]
[Site "Chess.com"]
[Date "2021.04.20"]
[Round "9"]
[White "picturesquecheck"]
[Black "Cambek64"]
[Result "1/2-1/2"]
[WhiteElo "2313"]
[BlackElo "2468"]
[TimeControl "180+1"]
[EndTime "11:45:56 PDT"]
[Termination "Game drawn by repetition"]

1. e4 {[%clk 0:02:50.9]} 1... Nf6 {[%clk 0:02:59.3]} 2. e5 {[%clk 0:02:49.3]}
2... Nd5 {[%clk 0:02:56.4]} 3. Nf3 {[%clk 0:02:50.2]} 3... d6 {[%clk 0:02:56.2]}
4. Bc4 {[%clk 0:02:50.6]} 4... Nb6 {[%clk 0:02:55.7]} 5. Bb3 {[%clk 0:02:51.1]}
5... d5 {[%clk 0:02:51.8]} 6. d4 {[%clk 0:02:50]} 6... Bg4 {[%clk 0:02:50]} 7.
O-O {[%clk 0:02:48.8]} 7... e6 {[%clk 0:02:50]} 8. h3 {[%clk 0:02:48.3]} 8...
Bxf3 {[%clk 0:02:43.1]} 9. Qxf3 {[%clk 0:02:49.2]} 9... c5 {[%clk 0:02:42.8]}
10. c3 {[%clk 0:02:49.5]} 10... cxd4 {[%clk 0:02:41.2]} 11. cxd4 {[%clk
0:02:50.4]} 11... Nc6 {[%clk 0:02:41.3]} 12. Be3 {[%clk 0:02:49.6]} 12... Be7
{[%clk 0:02:39.1]} 13. Rd1 {[%clk 0:02:49.6]} 13... O-O {[%clk 0:02:38.9]} 14.
a4 {[%clk 0:02:49.5]} 14... Rc8 {[%clk 0:02:39.3]} 15. Nc3 {[%clk 0:02:46.9]}
15... a6 {[%clk 0:02:22.2]} 16. Bc2 {[%clk 0:02:45]} 16... Re8 {[%clk
0:02:12.5]} 17. Rac1 {[%clk 0:02:43.4]} 17... Nd7 {[%clk 0:02:12.3]} 18. g3
{[%clk 0:02:34.6]} 18... Nf8 {[%clk 0:02:12.1]} 19. h4 {[%clk 0:02:33.8]} 19...
Qa5 {[%clk 0:02:04.8]} 20. Qh5 {[%clk 0:02:28.6]} 20... Qb4 {[%clk 0:01:58.3]}
21. Rb1 {[%clk 0:02:18.9]} 21... Na5 {[%clk 0:01:49.8]} 22. Qg4 {[%clk
0:01:45.7]} 22... Nc4 {[%clk 0:01:39.2]} 23. Bh6 {[%clk 0:01:42.7]} 23... g6
{[%clk 0:01:34.5]} 24. h5 {[%clk 0:01:36.9]} 24... Nxb2 {[%clk 0:01:32.1]} 25.
hxg6 {[%clk 0:01:26.4]} 25... Nxg6 {[%clk 0:01:07.1]} 26. Na2 {[%clk 0:01:17.5]}
26... Qa3 {[%clk 0:01:02.5]} 27. Bxg6 {[%clk 0:01:02.1]} 27... hxg6 {[%clk
0:01:01.4]} 28. Bc1 {[%clk 0:00:47.2]} 28... Rxc1 {[%clk 0:00:51.4]} 29. Nxc1
{[%clk 0:00:44.3]} 29... Nxd1 {[%clk 0:00:50]} 30. Qxd1 {[%clk 0:00:42.2]} 30...
Rc8 {[%clk 0:00:48.7]} 31. Nd3 {[%clk 0:00:38.4]} 31... Rc7 {[%clk 0:00:46]} 32.
Nf4 {[%clk 0:00:33.6]} 32... Bg5 {[%clk 0:00:37.4]} 33. Nh3 {[%clk 0:00:32.6]}
33... Bh6 {[%clk 0:00:36.4]} 34. Kg2 {[%clk 0:00:32.9]} 34... Rc1 {[%clk
0:00:32.8]} 35. Rxc1 {[%clk 0:00:32.7]} 35... Qxc1 {[%clk 0:00:33.2]} 36. Qg4
{[%clk 0:00:28.4]} 36... Qc4 {[%clk 0:00:26.4]} 37. Qh4 {[%clk 0:00:28.2]} 37...
Bg7 {[%clk 0:00:16.9]} 38. Qd8+ {[%clk 0:00:24.9]} 38... Bf8 {[%clk 0:00:16.6]}
39. Qb6 {[%clk 0:00:23.5]} 39... Qc6 {[%clk 0:00:15.6]} 40. Qa7 {[%clk
0:00:19.5]} 40... b5 {[%clk 0:00:15.4]} 41. axb5 {[%clk 0:00:19]} 41... axb5
{[%clk 0:00:16]} 42. Ng5 {[%clk 0:00:19.4]} 42... Qe8 {[%clk 0:00:14.9]} 43. Qb7
{[%clk 0:00:18.3]} 43... b4 {[%clk 0:00:15.2]} 44. f4 {[%clk 0:00:16.6]} 44...
Be7 {[%clk 0:00:14.2]} 45. Nf3 {[%clk 0:00:11.7]} 45... Bf8 {[%clk 0:00:14.6]}
46. Kh3 {[%clk 0:00:10.6]} 46... Qe7 {[%clk 0:00:15.1]} 47. Qb8 {[%clk
0:00:09.3]} 47... Qd7 {[%clk 0:00:14.8]} 48. Ng5 {[%clk 0:00:09.3]} 48... Kg7
{[%clk 0:00:12.4]} 49. Kh4 {[%clk 0:00:09.7]} 49... Be7 {[%clk 0:00:12.4]} 50.
Kg4 {[%clk 0:00:09.3]} 50... Bxg5 {[%clk 0:00:12.2]} 51. Kxg5 {[%clk 0:00:10.2]}
51... Qe7+ {[%clk 0:00:12.1]} 52. Kg4 {[%clk 0:00:10.7]} 52... Qf8 {[%clk
0:00:12.2]} 53. Qb5 {[%clk 0:00:09.3]} 53... Qe7 {[%clk 0:00:11.4]} 54. Qb6
{[%clk 0:00:09.4]} 54... Kg8 {[%clk 0:00:10.8]} 55. Qb5 {[%clk 0:00:09.7]} 55...
Kg7 {[%clk 0:00:11]} 56. Qb6 {[%clk 0:00:09.4]} 56... Qf8 {[%clk 0:00:10.8]} 57.
Qb7 {[%clk 0:00:09.4]} 57... Kg8 {[%clk 0:00:10.1]} 58. Kf3 {[%clk 0:00:09.7]}
58... Kg7 {[%clk 0:00:09.1]} 59. Qb6 {[%clk 0:00:09.7]} 59... Kg8 {[%clk
0:00:08.7]} 60. Qb7 {[%clk 0:00:10.3]} 60... Kg7 {[%clk 0:00:08.8]} 61. Qb6
{[%clk 0:00:10.8]} 61... Kg8 {[%clk 0:00:08.8]} 62. Qb7 {[%clk 0:00:11.3]}
1/2-1/2

[Event "*** Titled Tuesday Blitz"]
[Site "Chess.com"]
[Date "2021.04.20"]
[Round "9"]
[White "azikom"]
[Black "lucachess49"]
[Result "1-0"]
[WhiteElo "2633"]
[BlackElo "2438"]
[TimeControl "180+1"]
[EndTime "11:46:01 PDT"]
[Termination "azikom won by resignation"]

1. d3 {[%clk 0:03:00]} 1... e5 {[%clk 0:02:59.4]} 2. g3 {[%clk 0:02:59.4]} 2...
d5 {[%clk 0:02:55.5]} 3. Bg2 {[%clk 0:02:59.8]} 3... Nf6 {[%clk 0:02:52.9]} 4.
c4 {[%clk 0:02:59.2]} 4... c6 {[%clk 0:02:51.2]} 5. Qc2 {[%clk 0:02:52]} 5...
Bb4+ {[%clk 0:02:47.7]} 6. Bd2 {[%clk 0:02:51.8]} 6... Bxd2+ {[%clk 0:02:47.7]}
7. Nxd2 {[%clk 0:02:52.5]} 7... O-O {[%clk 0:02:48.6]} 8. Ngf3 {[%clk
0:02:52.4]} 8... Re8 {[%clk 0:02:47.9]} 9. cxd5 {[%clk 0:02:42]} 9... cxd5
{[%clk 0:02:43.3]} 10. Nb3 {[%clk 0:02:35.7]} 10... Nc6 {[%clk 0:02:40.4]} 11.
O-O {[%clk 0:02:34.9]} 11... Bg4 {[%clk 0:02:31.3]} 12. h3 {[%clk 0:02:33.9]}
12... Bxf3 {[%clk 0:02:29.1]} 13. Bxf3 {[%clk 0:02:32.8]} 13... Rc8 {[%clk
0:02:30]} 14. Qd2 {[%clk 0:02:29]} 14... a5 {[%clk 0:02:09.9]} 15. Rfc1 {[%clk
0:02:15.3]} 15... Qb6 {[%clk 0:02:00.6]} 16. Bg2 {[%clk 0:02:08.1]} 16... e4
{[%clk 0:01:50.5]} 17. e3 {[%clk 0:01:53.4]} 17... Nb4 {[%clk 0:01:42.7]} 18.
dxe4 {[%clk 0:01:48.6]} 18... dxe4 {[%clk 0:01:35.3]} 19. Nd4 {[%clk 0:01:45.5]}
19... Nd3 {[%clk 0:01:30.4]} 20. Rxc8 {[%clk 0:01:44.5]} 20... Rxc8 {[%clk
0:01:30.7]} 21. b3 {[%clk 0:01:40.1]} 21... Qb4 {[%clk 0:01:08.5]} 22. Qxb4
{[%clk 0:01:09]} 22... axb4 {[%clk 0:01:09.4]} 23. g4 {[%clk 0:01:02.1]} 23...
h6 {[%clk 0:01:06.2]} 24. a4 {[%clk 0:00:52.9]} 24... bxa3 {[%clk 0:00:57.5]}
25. Rxa3 {[%clk 0:00:52.4]} 25... Rc1+ {[%clk 0:00:57.5]} 26. Bf1 {[%clk
0:00:52.1]} 26... Nd5 {[%clk 0:00:49.7]} 27. Ra8+ {[%clk 0:00:47.5]} 27... Kh7
{[%clk 0:00:46.1]} 28. Re8 {[%clk 0:00:46.5]} 28... Nc3 {[%clk 0:00:34.2]} 29.
Kg2 {[%clk 0:00:45.4]} 29... Ne1+ {[%clk 0:00:26.1]} 30. Kg3 {[%clk 0:00:45.2]}
30... Nc2 {[%clk 0:00:16.6]} 31. Nxc2 {[%clk 0:00:36.5]} 31... Rxc2 {[%clk
0:00:17.5]} 32. Re7 {[%clk 0:00:30.8]} 32... b5 {[%clk 0:00:14.4]} 33. Rxf7
{[%clk 0:00:26.4]} 33... Rc1 {[%clk 0:00:12.3]} 34. Kg2 {[%clk 0:00:25.2]} 34...
Rb1 {[%clk 0:00:12.5]} 35. h4 {[%clk 0:00:22.1]} 35... Rxb3 {[%clk 0:00:12.2]}
36. h5 {[%clk 0:00:22.1]} 36... Rb2 {[%clk 0:00:11.9]} 37. Kg3 {[%clk
0:00:18.7]} 37... Rb1 {[%clk 0:00:10.1]} 38. Kg2 {[%clk 0:00:17.4]} 38... b4
{[%clk 0:00:10.5]} 39. Bc4 {[%clk 0:00:15.5]} 39... b3 {[%clk 0:00:04.7]} 40.
Rb7 {[%clk 0:00:14.7]} 40... b2 {[%clk 0:00:05.1]} 41. Rb8 {[%clk 0:00:14.7]}
41... g6 {[%clk 0:00:05.1]} 42. Rb7+ {[%clk 0:00:14.3]} 42... Kh8 {[%clk
0:00:05.4]} 43. hxg6 {[%clk 0:00:14.8]} 43... Rg1+ {[%clk 0:00:04]} 44. Kxg1
{[%clk 0:00:15]} 44... b1=Q+ {[%clk 0:00:04.9]} 45. Rxb1 {[%clk 0:00:15.3]}
45... Nxb1 {[%clk 0:00:05.8]} 46. Kg2 {[%clk 0:00:15]} 46... Kg7 {[%clk
0:00:06]} 47. Bf7 {[%clk 0:00:14.5]} 47... Nc3 {[%clk 0:00:05.1]} 48. Kg3 {[%clk
0:00:14.5]} 48... Ne2+ {[%clk 0:00:05.5]} 49. Kg2 {[%clk 0:00:14.6]} 49... Nc3
{[%clk 0:00:04.7]} 50. Be8 {[%clk 0:00:14.4]} 50... Nd5 {[%clk 0:00:04.4]} 51.
Bc6 {[%clk 0:00:13.7]} 51... Nf6 {[%clk 0:00:04]} 52. Kg3 {[%clk 0:00:13.8]}
52... Kxg6 {[%clk 0:00:04.6]} 53. Kf4 {[%clk 0:00:14.1]} 53... h5 {[%clk
0:00:01.9]} 54. Bxe4+ {[%clk 0:00:13.6]} 54... Nxe4 {[%clk 0:00:02]} 55. Kxe4
{[%clk 0:00:13.7]} 55... hxg4 {[%clk 0:00:02.9]} 56. Kf4 {[%clk 0:00:13.8]}
56... Kh5 {[%clk 0:00:03.8]} 57. e4 {[%clk 0:00:14]} 57... Kh4 {[%clk
0:00:03.6]} 58. e5 {[%clk 0:00:14.2]} 58... Kh5 {[%clk 0:00:03.6]} 59. Kf5
{[%clk 0:00:14]} 59... Kh4 {[%clk 0:00:02.2]} 60. e6 {[%clk 0:00:13.9]} 60...
Kh3 {[%clk 0:00:03.1]} 61. e7 {[%clk 0:00:14]} 61... Kg2 {[%clk 0:00:04]} 62.
Kxg4 {[%clk 0:00:14.1]} 62... Kxf2 {[%clk 0:00:04.9]} 63. e8=Q {[%clk
0:00:14.9]} 1-0

[Event "*** Titled Tuesday Blitz"]
[Site "Chess.com"]
[Date "2021.04.20"]
[Round "9"]
[White "kingofthenil"]
[Black "gmpeter008"]
[Result "0-1"]
[WhiteElo "2624"]
[BlackElo "2500"]
[TimeControl "180+1"]
[EndTime "11:46:06 PDT"]
[Termination "gmpeter008 won on time"]

1. e3 {[%clk 0:03:00.9]} 1... g6 {[%clk 0:03:00.1]} 2. Ke2 {[%clk 0:03:01.2]}
2... Bg7 {[%clk 0:03:01]} 3. Ke1 {[%clk 0:03:01.1]} 3... Nf6 {[%clk 0:03:01.9]}
4. d4 {[%clk 0:02:58.6]} 4... O-O {[%clk 0:03:02.8]} 5. Nf3 {[%clk 0:02:58.8]}
5... c5 {[%clk 0:03:03.2]} 6. dxc5 {[%clk 0:02:49.5]} 6... Na6 {[%clk
0:03:03.1]} 7. Bxa6 {[%clk 0:02:49.1]} 7... Qa5+ {[%clk 0:03:03.3]} 8. Bd2
{[%clk 0:02:44.9]} 8... Qxa6 {[%clk 0:03:04.2]} 9. Bc3 {[%clk 0:02:45.7]} 9...
d6 {[%clk 0:03:03.5]} 10. cxd6 {[%clk 0:02:43.2]} 10... Rd8 {[%clk 0:02:56]} 11.
Qe2 {[%clk 0:02:43.2]} 11... Qxd6 {[%clk 0:02:55.8]} 12. Nbd2 {[%clk 0:02:40.8]}
12... Bf5 {[%clk 0:02:55.1]} 13. e4 {[%clk 0:02:39.7]} 13... Nxe4 {[%clk
0:02:26.4]} 14. Nxe4 {[%clk 0:02:35.8]} 14... Bxe4 {[%clk 0:02:26.8]} 15. Qxe4
{[%clk 0:02:33.8]} 15... Bxc3+ {[%clk 0:02:27]} 16. bxc3 {[%clk 0:02:33.4]}
16... Rac8 {[%clk 0:02:27.6]} 17. Qe3 {[%clk 0:02:20.2]} 17... Rc4 {[%clk
0:02:18.6]} 18. g3 {[%clk 0:02:17.8]} 18... Qc6 {[%clk 0:02:18]} 19. Rd1 {[%clk
0:00:26.1]} 19... Rxd1+ {[%clk 0:02:12.6]} 20. Kxd1 {[%clk 0:00:27]} 20... Rxc3
{[%clk 0:02:13.2]} 21. Qxe7 {[%clk 0:00:27.2]} 21... Qxf3+ {[%clk 0:02:03.7]}
22. Kd2 {[%clk 0:00:27.1]} 22... Rc6 {[%clk 0:01:58.3]} 23. Qd8+ {[%clk
0:00:21.6]} 23... Kg7 {[%clk 0:01:57.9]} 24. Qd4+ {[%clk 0:00:22.5]} 24... Rf6
{[%clk 0:01:45.4]} 25. Rf1 {[%clk 0:00:14.2]} 25... g5 {[%clk 0:01:38.6]} 26. h4
{[%clk 0:00:13.4]} 26... h6 {[%clk 0:01:35.5]} 27. hxg5 {[%clk 0:00:11.9]} 27...
hxg5 {[%clk 0:01:36.4]} 28. Kc1 {[%clk 0:00:11.9]} 28... Kg6 {[%clk 0:01:31.4]}
29. Qd3+ {[%clk 0:00:02.8]} 29... Qxd3 {[%clk 0:01:31.5]} 30. cxd3 {[%clk
0:00:03.7]} 30... Kh5 {[%clk 0:01:31.9]} 31. f3 {[%clk 0:00:01.8]} 31... g4
{[%clk 0:01:19.2]} 32. f4 {[%clk 0:00:01.8]} 32... Rd6 {[%clk 0:01:16.6]} 33.
Kd2 {[%clk 0:00:01.7]} 33... Ra6 {[%clk 0:01:16.9]} 34. Ra1 {[%clk 0:00:02]}
34... Ra3 {[%clk 0:01:17.5]} 35. Ke3 {[%clk 0:00:02.1]} 35... Kg6 {[%clk
0:01:16.9]} 36. Ke4 {[%clk 0:00:02.6]} 36... f5+ {[%clk 0:01:12]} 37. Ke3 {[%clk
0:00:02.9]} 37... Kf6 {[%clk 0:01:12.7]} 38. Rh1 {[%clk 0:00:02.6]} 38... Rxa2
{[%clk 0:01:11.9]} 39. Rh6+ {[%clk 0:00:03.1]} 39... Kg7 {[%clk 0:01:11.4]} 40.
Rd6 {[%clk 0:00:03.8]} 40... Rb2 {[%clk 0:01:10.1]} 41. Rd5 {[%clk 0:00:03.4]}
41... Kf6 {[%clk 0:01:09.1]} 42. Rd6+ {[%clk 0:00:03.9]} 42... Ke7 {[%clk
0:01:09.5]} 43. Rd5 {[%clk 0:00:03.1]} 43... Ke6 {[%clk 0:01:10.1]} 44. Re5+
{[%clk 0:00:03.3]} 44... Kf6 {[%clk 0:01:10.7]} 45. Ra5 {[%clk 0:00:03.9]} 45...
a6 {[%clk 0:01:09.9]} 46. Rc5 {[%clk 0:00:04.2]} 46... Rb5 {[%clk 0:00:57.4]}
47. Rc8 {[%clk 0:00:03.5]} 47... Rb1 {[%clk 0:00:56.3]} 48. Rf8+ {[%clk
0:00:03.4]} 48... Ke6 {[%clk 0:00:56.4]} 49. Re8+ {[%clk 0:00:03.3]} 49... Kf7
{[%clk 0:00:56.8]} 50. Ra8 {[%clk 0:00:03.1]} 50... Rb5 {[%clk 0:00:54.9]} 51.
Kd4 {[%clk 0:00:03.2]} 51... a5 {[%clk 0:00:53.6]} 52. Rc8 {[%clk 0:00:02.5]}
52... Rb1 {[%clk 0:00:45.9]} 53. Ra8 {[%clk 0:00:02.5]} 53... b6 {[%clk
0:00:45.3]} 54. Ra7+ {[%clk 0:00:02.2]} 54... Ke6 {[%clk 0:00:44.4]} 55. Ra8
{[%clk 0:00:02]} 55... Rb4+ {[%clk 0:00:44.4]} 56. Ke3 {[%clk 0:00:02.1]} 56...
a4 {[%clk 0:00:44.3]} 57. Re8+ {[%clk 0:00:02.4]} 57... Kf6 {[%clk 0:00:44.2]}
58. Rf8+ {[%clk 0:00:02.9]} 58... Ke6 {[%clk 0:00:43.6]} 59. Re8+ {[%clk
0:00:03.2]} 59... Kf7 {[%clk 0:00:44.1]} 60. Re5 {[%clk 0:00:03.2]} 60... Kf6
{[%clk 0:00:44.7]} 61. Re8 {[%clk 0:00:03.4]} 61... b5 {[%clk 0:00:45]} 62. Ra8
{[%clk 0:00:03]} 62... Rb3 {[%clk 0:00:44.8]} 63. Kd2 {[%clk 0:00:03.4]} 63...
a3 {[%clk 0:00:45]} 64. Kc2 {[%clk 0:00:03.9]} 64... Rb2+ {[%clk 0:00:45.4]} 65.
Kc1 {[%clk 0:00:04]} 65... b4 {[%clk 0:00:45.9]} 66. Ra6+ {[%clk 0:00:03.9]}
66... Ke7 {[%clk 0:00:45.7]} 67. Ra4 {[%clk 0:00:04.1]} 67... Ke6 {[%clk
0:00:44.5]} 68. Ra5 {[%clk 0:00:04.3]} 68... Rg2 {[%clk 0:00:38.6]} 69. Re5+
{[%clk 0:00:04.8]} 69... Kf6 {[%clk 0:00:38.8]} 70. Rb5 {[%clk 0:00:05.7]} 70...
a2 {[%clk 0:00:39]} 71. Rb6+ {[%clk 0:00:04.9]} 71... Ke7 {[%clk 0:00:38.5]} 72.
Ra6 {[%clk 0:00:05.8]} 72... b3 {[%clk 0:00:29.2]} 0-1

[Event "*** Titled Tuesday Blitz"]
[Site "Chess.com"]
[Date "2021.04.20"]
[Round "9"]
[White "dretch"]
[Black "AryanTari"]
[Result "1/2-1/2"]
[WhiteElo "2798"]
[BlackElo "2893"]
[TimeControl "180+1"]
[EndTime "11:46:09 PDT"]
[Termination "Game drawn by stalemate"]

1. d4 {[%clk 0:03:00.9]} 1... d5 {[%clk 0:02:57.4]} 2. c4 {[%clk 0:03:01]} 2...
e6 {[%clk 0:02:58.1]} 3. Nc3 {[%clk 0:03:01.1]} 3... a6 {[%clk 0:02:58.3]} 4.
cxd5 {[%clk 0:03:00.7]} 4... exd5 {[%clk 0:02:59.2]} 5. Bf4 {[%clk 0:03:01]}
5... Nf6 {[%clk 0:02:58.8]} 6. e3 {[%clk 0:03:01.1]} 6... Bd6 {[%clk 0:02:58.8]}
7. Bg5 {[%clk 0:03:01.6]} 7... Be6 {[%clk 0:02:32.4]} 8. Bd3 {[%clk 0:03:00.7]}
8... O-O {[%clk 0:02:30.5]} 9. Nge2 {[%clk 0:02:57.4]} 9... h6 {[%clk
0:02:30.6]} 10. Bf4 {[%clk 0:02:54.3]} 10... c5 {[%clk 0:02:27.4]} 11. Bxd6
{[%clk 0:02:49.9]} 11... Qxd6 {[%clk 0:02:27.3]} 12. dxc5 {[%clk 0:02:50.5]}
12... Qxc5 {[%clk 0:02:27.4]} 13. O-O {[%clk 0:02:50.6]} 13... Nc6 {[%clk
0:02:21.7]} 14. Rc1 {[%clk 0:02:49.7]} 14... Qd6 {[%clk 0:02:17.2]} 15. Bb1
{[%clk 0:02:46.4]} 15... Rad8 {[%clk 0:02:10.7]} 16. Qc2 {[%clk 0:02:30.2]}
16... d4 {[%clk 0:02:06.5]} 17. Rcd1 {[%clk 0:01:56]} 17... Qe5 {[%clk
0:01:51.9]} 18. exd4 {[%clk 0:01:48.1]} 18... Nxd4 {[%clk 0:01:52.8]} 19. Nxd4
{[%clk 0:01:47.7]} 19... Rxd4 {[%clk 0:01:53.4]} 20. Rfe1 {[%clk 0:01:44.4]}
20... Qc5 {[%clk 0:01:46.8]} 21. Rxd4 {[%clk 0:01:36.8]} 21... Qxd4 {[%clk
0:01:47.7]} 22. Rd1 {[%clk 0:01:37.4]} 22... Qc5 {[%clk 0:01:43.4]} 23. h3
{[%clk 0:01:34.3]} 23... b5 {[%clk 0:01:43.2]} 24. a3 {[%clk 0:01:30.9]} 24...
Rc8 {[%clk 0:01:42.9]} 25. Qd2 {[%clk 0:01:29.3]} 25... Qb6 {[%clk 0:01:37.6]}
26. Qd6 {[%clk 0:01:22.5]} 26... Qb7 {[%clk 0:01:33.8]} 27. Qe5 {[%clk
0:01:12.6]} 27... Qb6 {[%clk 0:01:11.6]} 28. Rd6 {[%clk 0:01:08.4]} 28... Rc6
{[%clk 0:01:08.9]} 29. Rxc6 {[%clk 0:00:57.5]} 29... Qxc6 {[%clk 0:01:09.8]} 30.
Qb8+ {[%clk 0:00:57.6]} 30... Ne8 {[%clk 0:01:06.7]} 31. Be4 {[%clk 0:00:55.5]}
31... Qc8 {[%clk 0:01:00.8]} 32. Qb6 {[%clk 0:00:49.7]} 32... Nf6 {[%clk
0:00:57.9]} 33. Bb7 {[%clk 0:00:48.5]} 33... Qb8 {[%clk 0:00:55.6]} 34. Qxa6
{[%clk 0:00:47.5]} 34... Qf4 {[%clk 0:00:55.7]} 35. g3 {[%clk 0:00:16.6]} 35...
Qc1+ {[%clk 0:00:53.3]} 36. Kg2 {[%clk 0:00:17.2]} 36... Bc4 {[%clk 0:00:50.5]}
37. Kh2 {[%clk 0:00:15.2]} 37... Qxb2 {[%clk 0:00:47.7]} 38. Qa8+ {[%clk
0:00:14.5]} 38... Kh7 {[%clk 0:00:46.8]} 39. Ne4 {[%clk 0:00:15.2]} 39... Nxe4
{[%clk 0:00:40.9]} 40. Bxe4+ {[%clk 0:00:16.1]} 40... g6 {[%clk 0:00:41.6]} 41.
Qa7 {[%clk 0:00:15.4]} 41... Qe5 {[%clk 0:00:35.7]} 42. Bg2 {[%clk 0:00:15.1]}
42... Kg7 {[%clk 0:00:33.9]} 43. h4 {[%clk 0:00:15.3]} 43... Bb3 {[%clk
0:00:29.7]} 44. Qb6 {[%clk 0:00:15]} 44... Bc4 {[%clk 0:00:27.3]} 45. Qa7 {[%clk
0:00:14.9]} 45... h5 {[%clk 0:00:26.8]} 46. Qb6 {[%clk 0:00:14.9]} 46... Qc3
{[%clk 0:00:26.3]} 47. Qc5 {[%clk 0:00:13.9]} 47... Qc2 {[%clk 0:00:19.8]} 48.
Qd4+ {[%clk 0:00:12.5]} 48... Kh7 {[%clk 0:00:20.2]} 49. Bd5 {[%clk 0:00:07.2]}
49... Bxd5 {[%clk 0:00:14.7]} 50. Qxd5 {[%clk 0:00:08.1]} 50... Qxf2+ {[%clk
0:00:15.1]} 51. Kh1 {[%clk 0:00:08.5]} 51... Qf1+ {[%clk 0:00:08.9]} 52. Kh2
{[%clk 0:00:08.4]} 52... Qf2+ {[%clk 0:00:09.5]} 53. Kh1 {[%clk 0:00:08.8]}
53... Qf5 {[%clk 0:00:10.2]} 54. Qxf5 {[%clk 0:00:03.2]} 54... gxf5 {[%clk
0:00:11.1]} 55. Kg2 {[%clk 0:00:03.7]} 55... Kg6 {[%clk 0:00:11]} 56. Kf3 {[%clk
0:00:04]} 56... Kg7 {[%clk 0:00:07.3]} 57. Ke3 {[%clk 0:00:03.9]} 57... Kg6
{[%clk 0:00:05.8]} 58. Kf3 {[%clk 0:00:04.1]} 58... Kf6 {[%clk 0:00:05.6]} 59.
Kf4 {[%clk 0:00:04.2]} 59... Ke6 {[%clk 0:00:05]} 60. Kg5 {[%clk 0:00:03.7]}
60... Ke5 {[%clk 0:00:04.2]} 61. Kxh5 {[%clk 0:00:04]} 61... f4 {[%clk
0:00:04.8]} 62. Kg4 {[%clk 0:00:04.3]} 62... f5+ {[%clk 0:00:03.4]} 63. Kf3
{[%clk 0:00:04.7]} 63... fxg3 {[%clk 0:00:03.3]} 64. Kxg3 {[%clk 0:00:05.6]}
64... f4+ {[%clk 0:00:03.3]} 65. Kf3 {[%clk 0:00:06.1]} 65... Kf5 {[%clk
0:00:03.8]} 66. h5 {[%clk 0:00:06.5]} 66... Kg5 {[%clk 0:00:04.2]} 67. h6 {[%clk
0:00:07.1]} 67... Kxh6 {[%clk 0:00:04.7]} 68. Kxf4 {[%clk 0:00:08]} 68... Kg6
{[%clk 0:00:05.4]} 69. Ke5 {[%clk 0:00:08.4]} 69... Kf7 {[%clk 0:00:06.1]} 70.
Kd6 {[%clk 0:00:08.9]} 70... Ke8 {[%clk 0:00:06.6]} 71. Kc6 {[%clk 0:00:09.3]}
71... Kd8 {[%clk 0:00:07.3]} 72. Kxb5 {[%clk 0:00:09.6]} 72... Kc8 {[%clk
0:00:08.1]} 73. a4 {[%clk 0:00:09.6]} 73... Kb8 {[%clk 0:00:09]} 74. a5 {[%clk
0:00:09.9]} 74... Ka8 {[%clk 0:00:09.9]} 75. a6 {[%clk 0:00:10]} 75... Kb8
{[%clk 0:00:10.8]} 76. Kb6 {[%clk 0:00:10.7]} 76... Ka8 {[%clk 0:00:11.7]} 77.
a7 {[%clk 0:00:11.5]} 1/2-1/2